Cogmind - Beta 16.1 @@@ ROGUE MODE // 2026.04.19 @ 15:14:34 Player: Zaros426 Result: Destroyed by P-60 Hacker with Shock Rifle Performance ------------- Evolutions (4) 2000 Regions Visited (13) 2600 Robots Destroyed (246) 1230 Value Destroyed (11467) 11467 Prototype IDs (50) 1000 Alien Tech Used (0) 0 Bonus (8170) 8170 TOTAL SCORE: 26467 Bonus ------- Triggered High Security 500 High Alert Combat Kills 2744 Follower Combat Kills 1337 Entered Garrisons 800 Used RIF Installer 2500 Aligned with FarCom 300 Friendly Fire -11 Cogmind --------- Core Integrity 0/850 Matter 280/300 Energy 32/100 System Corruption 11% Temperature Cool (0) Movement Core (50) Location -6/Factory Parts ------- > --- POWER (2) -------- (None) > --- PROPULSION (4) --- (None) > --- UTILITY (6) ------ Core Analyzer Graphene Brace > --- WEAPON (3) ------- (None) > --- INVENTORY (5) ---- Enhanced Optical Array Seismic Detector Improved EM Pulse Cannon Latent Energy Streamer Peak State ------------ > --- POWER ------------ Improved Deuterium Engine Improved Deuterium Engine > --- PROPULSION ------- Improved Heavy Treads Improved Heavy Treads > --- UTILITY ---------- Huge Storage Unit Advanced Targeting Computer Core Analyzer Heavy Reflective Plating Graphene Brace > --- WEAPON ----------- Nova Cannon Heavy Mass Driver > --- INVENTORY -------- Improved Heavy Treads Improved Heavy Treads Improved Heavy Treads Armored Heavy Treads Energy Well High-capacity Matter Pod Improved Trap Scanner Enhanced Optical Array Seismic Detector Armor Integrity Analyzer Advanced ECM Suite Relay Coupler [NC] Relay Coupler [Grunt] Relay Coupler [Sentry] Relay Coupler [Hunter] Improved EM Pulse Cannon Latent Energy Streamer Heavy Mass Driver Remote Datajack Great Axe [Rating: 94] Favorites ----------- Power Improved Deuterium Engine Engine Improved Deuterium Engine Power Core Micro Nuclear Core Propulsion Armored Treads Treads Armored Treads Wheel Armored Wheel Flight Unit Improved VTOL Module Utility Advanced Targeting Computer Device Seismic Detector Storage Huge Storage Unit Processor Advanced Targeting Computer Hackware Hacking Suite Protection Hardened Medium Armor Plating Weapon Heavy Assault Rifle Energy Gun EM Pulse Gun Energy Cannon Nova Cannon Ballistic Gun Heavy Assault Rifle Ballistic Cannon Heavy Assault Cannon Launcher Grenade Launcher Special Weapon Remote Datajack Impact Weapon Heavy Hammer Slashing Weapon Makeshift Sword Special Melee Weapon Datajack Build | -11 -10 -10 -10 -9 -8 -8 -8 -8 -7 -7 -6 -6 -6 ------- Run | Yrd Mat Min Exi Min Mat Gar Mat Gar Fac Gar Fac Gar Fac Slots Evolved 8 | . . . . . 4 . . . 2 . 2 . . Power 1 | . . . . . . . . . . . 1 . . Propulsion 2 | . . . . . 1 . . . 1 . . . . Utility 4 | . . . . . 2 . . . 1 . 1 . . Weapon 1 | . . . . . 1 . . . . . . . . Parts Attached 139 | 8 15 5 3 8 27 10 4 16 3 4 3 18 15 Power 19 | 1 3 . . 1 5 . 2 3 . 2 1 1 . Engine 15 | 1 3 . . 1 4 . 1 1 . 2 1 1 . Core 4 | . . . . . 1 . 1 2 . . . . . Reactor . | . . . . . . . . . . . . . . Propulsion 31 | 2 1 2 . 4 6 4 . 3 1 . . 5 3 Treads 23 | 2 1 2 . . 5 3 . 3 1 . . 3 3 Leg . | . . . . . . . . . . . . . . Wheel 7 | . . . . 4 . 1 . . . . . 2 . Hover . | . . . . . . . . . . . . . . Flight 1 | . . . . . 1 . . . . . . . . Utility 55 | 2 4 2 2 . 10 4 1 7 2 1 2 9 9 Device 7 | 1 . . . . 1 . 1 . . . . 1 3 Storage 7 | 1 1 . 2 . 1 1 . . . . . . 1 Processor 6 | . . 1 . . 2 . . . . 1 1 . 1 Hackware 18 | . . . . . . 2 . 4 1 . 1 6 4 Protection 17 | . 3 1 . . 6 1 . 3 1 . . 2 . Artifact . | . . . . . . . . . . . . . . Weapon 34 | 3 7 1 1 3 6 2 1 3 . 1 . 3 3 Energy Gun 8 | 2 2 . . . 2 . 1 . . 1 . . . Energy Cannon 3 | . . . . 1 . . . . . . . 1 1 Ballistic Gun 10 | 1 4 . . . 3 1 . 1 . . . . . Ballistic Cannon 4 | . . . . . 1 1 . . . . . 1 1 Launcher 2 | . . 1 . 1 . . . . . . . . . Special Weapon 2 | . . . . . . . . 1 . . . . 1 Impact Weapon 1 | . 1 . . . . . . . . . . . . Slashing Weapon 3 | . . . . 1 . . . 1 . . . 1 . Piercing Weapon . | . . . . . . . . . . . . . . Special Melee Weapon 1 | . . . 1 . . . . . . . . . . Unidentified Prototypes 3 | . . . . . 2 . 1 . . . . . . Parts Lost 35 | . 7 1 . . 1 1 . 10 . . . . 15 Power 8 | . 3 . . . 1 . . 2 . . . . 2 Propulsion 9 | . 1 1 . . . . . 1 . . . . 6 Utility 8 | . 1 . . . . . . 3 . . . . 4 Weapon 10 | . 2 . . . . 1 . 4 . . . . 3 Highest Loss Streak 5 | . 3 1 . . 1 1 . 3 . . . . 5 To Critical Strikes . | . . . . . . . . . . . . . . Average Backups 19 | 1 8 14 15 18 19 20 24 23 24 24 24 21 18 Power . | . . . . . . . . 1 1 1 . . . Propulsion 3 | . 1 . . . 4 5 5 4 3 3 3 4 3 Utility 9 | . 2 5 5 7 5 9 14 15 18 18 18 12 10 Weapon 4 | 1 3 7 9 9 7 4 3 1 1 2 2 3 4 Tool/Special . | . . . . . . . . . . . . . . Unused Backups 44 | . 6 1 1 . 9 4 1 5 . 6 . 5 6 Power 3 | . . . . . . 2 1 . . . . . . Propulsion 9 | . 2 . . . 2 1 . 1 . . . 3 . Utility 25 | . 1 1 1 . 3 1 . 4 . 6 . 2 6 Weapon 6 | . 2 . . . 4 . . . . . . . . Tool/Special 1 | . 1 . . . . . . . . . . . . Average Slot Usage (%) 88 | . 97 84 71 91 91 89 90 90 94 100 95 80 70 Engine 8 | . 12 . . 8 7 9 8 8 . 4 11 13 11 Treads 19 | . 27 28 28 16 24 15 16 14 20 15 12 13 12 Wheel 5 | . . . . 11 2 11 10 11 9 15 13 2 . Storage 9 | . 10 14 14 14 9 9 9 9 7 7 6 6 6 Processor 6 | . . . . . 7 9 9 9 7 7 9 13 9 Hackware 4 | . . . . . . . . 9 9 15 14 11 6 Protection 12 | . 13 13 14 14 19 16 18 4 11 6 1 5 4 Ballistic Gun 8 | . 21 27 . . 13 3 9 14 . . . . . Ballistic Cannon 3 | . . . . . 5 8 9 1 . . . 5 5 Special Weapon 1 | . . . . . . . . . 3 7 6 2 2 Slashing Weapon 3 | . . . . 13 1 1 . 2 15 15 13 3 2 Special Melee Weapon 1 | . . . 13 11 . 3 . 3 . . . . . Peak Build Rating 94 | 7 11 12 12 23 37 36 38 38 44 45 51 89 94 Average Rating 36 | 5 9 11 9 14 31 33 36 31 37 43 47 75 83 On Entrance 30 | . 7 10 12 10 15 34 36 38 34 44 44 51 88 Avg Prop Armor Cover (%) 12 | . 8 . . 12 10 6 6 9 20 19 21 12 21 Naked Turns . | . . . . . . . . . . . . . . Heaviest Build 148 | 13 36 31 44 49 80 120 120 120 96 100 107 139 148 Greatest Support 150 | 40 40 40 40 40 60 60 60 60 24 24 24 150 150 Greatest Overweight (x) 7 | . . . 1 3 5 4 4 4 7 4 4 4 . Average Overweight (x) 1 | . . . . 2 2 3 2 2 5 3 4 1 . Largest Inventory Capacity 25 | 8 15 15 20 20 20 25 25 25 25 25 25 25 25 Average Capacity 20 | 7 12 15 17 20 20 21 25 25 25 25 25 25 24 Most Carried 25 | 3 15 15 17 20 20 25 25 25 25 25 25 25 25 Average Carried 19 | 1 8 14 15 18 19 21 24 23 24 24 24 24 22 Final Capacity 25 | 8 15 15 20 20 20 25 25 25 25 25 25 25 5 Final Carried 25 | 3 15 15 17 20 20 25 25 25 24 25 25 25 4 Class Distribution -------------------- 32% | Mutant 18% | Bothacker-Mutant 16% | Tank 11% | Bothacker-Tank 10% | Botlord-Mutant 4% | Scavenger-Tank 3% | Botlord-Gunner Dominant Class ---------------- Mutant | -10/Materials Mutant | -10/Mines Mutant | -10/Exiles Mutant | -9/Mines Tank | -8/Materials Tank | -8/Garrison Bothacker-Tank | -8/Materials Bothacker-Mutant | -8/Garrison Bothacker-Mutant | -7/Factory Botlord-Mutant | -7/Garrison Botlord-Mutant | -6/Factory Bothacker-Mutant | -6/Garrison Bothacker-Tank | -6/Factory Resources | -11 -10 -10 -10 -9 -8 -8 -8 -8 -7 -7 -6 -6 -6 ----------- Run | Yrd Mat Min Exi Min Mat Gar Mat Gar Fac Gar Fac Gar Fac Matter Collected 8668 | 280 1197 418 159 195 1749 1487 272 1086 70 130 70 745 810 Remotely . | . . . . . . . . . . . . . . Salvage Created 9948 | 186 1587 160 . 112 2178 711 399 814 73 388 . 1691 1649 Parts 544 | 11 101 18 . 13 136 48 27 47 4 11 . 68 60 Haulers Intercepted 11 | . 2 . . . 6 . 1 . . . . . 2 Recyclers Shooed 10 | 1 7 . . . 1 . 1 . . . . . . Parts Field Recycled . | . . . . . . . . . . . . . . Retrieved Matter . | . . . . . . . . . . . . . . Parts Self-Destructed . | . . . . . . . . . . . . . . Prevented . | . . . . . . . . . . . . . . Parts Restored . | . . . . . . . . . . . . . . Kills | -11 -10 -10 -10 -9 -8 -8 -8 -8 -7 -7 -6 -6 -6 ------- Run | Yrd Mat Min Exi Min Mat Gar Mat Gar Fac Gar Fac Gar Fac Combat Hostiles Destroyed 171 | . 31 6 . 2 39 26 4 22 1 2 . 13 25 Melee 7 | . . . . . . 1 . 2 1 2 . . 1 Guns 65 | . 29 3 . . 15 3 . 15 . . . . . Cannons 75 | . . . . . 18 22 4 5 . . . 13 13 AOE 21 | . 2 3 . 2 6 . . . . . . . 8 Classes Destroyed 19 | 3 7 1 . . 4 2 . . . . . 1 1 Worker 18 | 2 3 1 . 1 10 . . . . . . . 1 Builder 10 | . 4 1 . 1 4 . . . . . . . . Tunneler 9 | 4 . 1 . 2 2 . . . . . . . . Hauler 11 | . 2 . . . 6 . 1 . . . . . 2 Recycler 8 | 1 2 . . . 3 . 2 . . . . . . Mechanic 5 | . 1 . . . 1 . . . . . . . 3 Operator 1 | . 1 . . . . . . . . . . . . Watcher 9 | . 3 . . . 4 . 2 . . . . . . Swarmer 43 | . 8 3 . . 9 13 . 6 . 2 . . 2 Cutter 2 | . . . . . . 2 . . . . . . . Grunt 76 | . 23 2 . 2 17 8 1 8 . . . 2 13 Brawler 6 | . . . . . . . . . . . . 3 3 Duelist 10 | . . . . . 2 . . . . . . 5 3 Protector 1 | . . . . . . . . . . . . . 1 Sentry 21 | . . . . . 8 3 2 4 1 . . 1 2 Demolisher 1 | . . 1 . . . . . . . . . . . Hunter 5 | . . . . . 2 . 1 . . . . 2 . Programmer 9 | . . . . . . 2 . 5 . . . . 2 Heavy 1 | . . . . . 1 . . . . . . . . Best Kill Streak 11 | 3 7 3 . 2 11 6 2 5 1 1 . 4 9 Combat Bots Only 7 | . 5 3 . 2 6 6 1 5 1 1 . 4 7 Max Kills in Single Turn 5 | 1 2 2 . 1 3 2 1 2 1 1 . 1 5 Gunslinging 1 | . . . . . 1 . . 1 . . . . . Exploded 3 | . 1 2 . 1 2 . . . . . . . 3 Melee 1 | . . . . . . 1 . 1 1 1 . . 1 Uniques/NPCs Destroyed . | . . . . . . . . . . . . . . Combat | -11 -10 -10 -10 -9 -8 -8 -8 -8 -7 -7 -6 -6 -6 -------- Run | Yrd Mat Min Exi Min Mat Gar Mat Gar Fac Gar Fac Gar Fac Hostile Shots Fired 1159 | . 156 11 . 1 137 145 15 157 54 . . 74 409 Missed 349 | . 42 2 . . 37 41 4 25 19 . . 27 152 Hits 810 | . 114 9 . 1 100 104 11 132 35 . . 47 257 Melee 24 | . . . . . 3 6 . . . . . . 15 Projectile 786 | . 114 9 . 1 97 98 11 132 35 . . 47 242 AOE 2 | . . . . . . 2 . . . . . . . Critical Strikes 24 | . 1 1 . . 4 7 . 3 . . . 1 7 Actively Blocked 7 | . . . . . . . . . . . . . 7 Part Disruptions 2 | . . . . . . . . 1 . . . . 1 Damage Taken 12145 | . 1225 279 . 57 1613 1429 170 1573 269 . . 770 4760 Core 1537 | . 151 . . 28 148 104 31 194 18 . . 86 777 Absorbed by Shields 281 | . . . . . . . . 201 . . . . 80 Reduced by Siege Mode 28 | . . . . . . . . . . . . 5 23 Ignored by Resistances 100 | . . . . . . . . . . . . . 100 Regen/Repaired (Parts) 1166 | . 153 . . . 142 . 222 . 328 . 321 . . Core Remaining (%) 59 | 100 . . . 28 . . . 13 . 97 . . . Volleys Fired 584 | 15 125 11 . 3 128 88 15 67 2 1 3 54 72 Largest 3 | 2 2 2 . 2 3 2 2 2 1 1 1 2 2 Hottest 178 | 100 80 46 . 63 80 73 73 73 5 5 5 134 178 Shots Fired 1053 | 30 246 20 . 5 302 144 30 127 2 1 3 60 83 Gun 694 | 30 246 18 . . 228 56 15 101 . . . . . Cannon 290 | . . . . . 66 88 15 26 . . . 37 58 Launcher 15 | . . 2 . 5 8 . . . . . . . . Special 54 | . . . . . . . . . 2 1 3 23 25 Kinetic 906 | . 220 18 . . 294 144 30 127 . . . 30 43 Thermal 42 | 30 . . . . . . . . . . . . 12 Explosive 15 | . . 2 . 5 8 . . . . . . . . Electromagnetic 36 | . 26 . . . . . . . . . . 7 3 Robot Hit Streak 18 | 10 9 8 . 10 11 18 4 13 3 4 7 11 14 Robot Miss Streak 5 | 2 4 5 . 1 4 5 1 2 . . . 2 2 Penetration Max 1 | . . . . . 1 1 . . . . . . 1 Secondary Targets 8 | . 3 . . . 3 . . 2 . . . . . Max Gunslinging Chain 1 | . 1 . . . 1 . . 1 . . . . . Shots Hit Robots 759 | 18 151 9 4 10 180 92 18 97 6 19 3 95 57 Core Hits 393 | 8 68 11 . 6 103 33 12 37 2 13 . 34 66 Critical Kills . | . . . . . . . . . . . . . . Critical Parts Destroyed 2 | . . . . . 2 . . . . . . . . Critical Strikes 29 | 1 . . . . 8 5 2 . . 1 . 6 6 Burn 1 | 1 . . . . . . . . . . . . . Destroy 2 | . . . . . 2 . . . . . . . . Blast 24 | . . . . . 6 5 2 . . . . 6 5 Sever 2 | . . . . . . . . . . 1 . . 1 Melee Attacks 271 | . . . 4 7 7 43 . 29 9 59 2 105 6 Impact . | . . . . . . . . . . . . . . Slashing 232 | . . . . 7 7 18 . 19 9 59 2 105 6 Piercing . | . . . . . . . . . . . . . . Sneak Attacks 42 | . . . 4 7 5 15 . 6 1 3 . . 1 Combat Hostiles 1 | . . . . . . . . 1 . . . . . Follow-up Attacks 2 | . . . . . . . . . . . . 2 . Damage Inflicted 27145 | 223 2695 266 . 712 5551 3014 699 2142 183 1412 . 5537 4711 Guns 6473 | 223 2375 136 . . 2213 322 100 1104 . . . . . Cannons 9721 | . . . . . 2289 2163 599 845 . . . 1560 2265 Explosions 3518 | . 320 130 . 190 663 . . . . . . . 2215 Melee 7357 | . . . . 522 386 529 . 186 183 1412 . 3977 162 Ramming 76 | . . . . . . . . 7 . . . . 69 Kinetic 15363 | . 2169 136 . . 4502 2485 699 1949 . . . 1411 2012 Thermal 592 | 223 121 . . . . . . . . . . . 248 Explosive 1182 | . 199 130 . 190 663 . . . . . . . . Electromagnetic 2575 | . 206 . . . . . . . . . . 149 2220 Impact . | . . . . . . . . . . . . . . Slashing 7357 | . . . . 522 386 529 . 186 183 1412 . 3977 162 Piercing . | . . . . . . . . . . . . . . Highest Corruption 11 | . 7 10 10 10 . 1 1 11 . . . . 11 Average Corruption 5 | . 6 9 10 10 . 1 1 5 . . . . 6 Corruption Purged . | . . . . . . . . . . . . . . Corruption Blocked . | . . . . . . . . . . . . . . Effects 221 | . 64 27 29 30 . 13 11 42 . . . . 5 Message Errors 66 | . 18 5 11 12 . 4 3 12 . . . . 1 Matter Fused 45 | . 12 8 6 4 . 3 4 8 . . . . . Heat Flow Errors 26 | . 10 3 3 6 . . 1 3 . . . . . Energy Discharges 32 | . 6 6 4 4 . 3 . 6 . . . . 3 Parts Rejected 1 | . 1 . . . . . . . . . . . . Parts Fused 1 | . 1 . . . . . . . . . . . . Data Loss (minor) 28 | . 9 3 4 3 . 1 3 5 . . . . . Data Loss (major) 9 | . . . 1 1 . 1 . 5 . . . . 1 Misfires 4 | . . 1 . . . 1 . 2 . . . . . Alerts 4 | . 3 . . . . . . 1 . . . . . Weapon Failures 5 | . 4 1 . . . . . . . . . . . Overload Shots . | . . . . . . . . . . . . . . Overflow Damage 1312 | . 66 . . 140 257 300 42 54 31 111 . 129 182 Projectiles 521 | . . . . . 147 132 42 54 . . . 15 131 Explosions 117 | . 66 . . . . . . . . . . . 51 Melee 674 | . . . . 140 110 168 . . 31 111 . 114 . Knockbacks 34 | . . . . . 7 11 4 1 . . . 4 7 Impact . | . . . . . . . . . . . . . . Kinetic 29 | . . . . . 6 8 4 1 . . . 4 6 Secondary 5 | . . . . . 1 3 . . . . . . 1 Self-Inflicted Damage 403 | . 60 8 . 44 69 . . . . . . . 222 Shots 11 | . 1 1 . 1 3 . . . . . . . 5 Rammed 4 | . 1 . . . . . . . . . . . 3 Targets Rammed 6 | . 1 . . . . . . 1 . . . . 4 Kicked . | . . . . . . . . . . . . . . Crushed 2 | . . . . . . . . 1 . . . . 1 Highest Temperature 333 | 96 333 277 245 277 255 225 315 259 . . . 303 267 Average Temperature 70 | 36 91 136 109 103 59 50 85 84 . . . 58 57 Received Heat Transfer 3126 | . 492 . . 9 540 351 63 360 84 . . 123 1104 Effects 7 | . 2 . . . . . 1 3 . . . . 1 Energy Bleed 2 | . 1 . . . . . 1 . . . . . . Interference 4 | . . . . . . . . 3 . . . . 1 Damage (minor) 1 | . 1 . . . . . . . . . . . . Siege Activations 5 | . . . . . . . . . . . . 3 2 Total Turns 67 | . . . . . . . . . . . . 50 17 Longest Duration 34 | . . . . . . . . . . . . 34 10 Martial Activations . | . . . . . . . . . . . . . . Shielding Activations . | . . . . . . . . . . . . . . Robots Disrupted . | . . . . . . . . . . . . . . Combat Hostiles . | . . . . . . . . . . . . . . Robots Corrupted 4 | . . . . . 1 . . . . . . . 3 Combat Hostiles 3 | . . . . . . . . . . . . . 3 Parts Fried 9 | . . . . . 3 . . . . . . . 6 Impact Corruptions 1 | . . . . . 1 . . . . . . . . Robots Melted . | . . . . . . . . . . . . . . Combat Hostiles . | . . . . . . . . . . . . . . Parts Melted 4 | . . . . . . 1 . 1 . . . 2 . Heat Transferred 1162 | 740 200 . . . . . . . . . . . 222 Parts Sabotaged 1 | . . . . . . . . . . . . . 1 Parts Stolen . | . . . . . . . . . . . . . . Parts Stripped . | . . . . . . . . . . . . . . Power Chain Reactions 4 | . 4 . . . . . . . . . . . . Latent Energy Used 486 | . . . . . . . . . . . . . 486 LE Corruption 8 | . . . . . . . . . . . . . 8 Alert | -11 -10 -10 -10 -9 -8 -8 -8 -8 -7 -7 -6 -6 -6 ------- Run | Yrd Mat Min Exi Min Mat Gar Mat Gar Fac Gar Fac Gar Fac Maximum Alert Level 5 | . 2 1 . . 2 5 4 4 3 4 3 4 5 Low Security (%) 23 | 100 45 76 . 100 43 . . . . . . . . Level 1 10 | . 26 23 . . 31 . . . . . . . . Level 2 17 | . 28 . . . 24 11 . 13 45 24 57 13 20 Level 3 22 | . . . . . . 15 86 41 54 39 42 51 11 Level 4 17 | . . . . . . 41 13 44 . 36 . 34 13 Level 5 5 | . . . . . . 31 . . . . . . 12 High Security 3 | . . . . . . . . . . . . . 42 Max Security . | . . . . . . . . . . . . . . Peak Influence 2309 | 10 521 298 . 83 695 2309 1125 1443 758 1433 751 1328 2300 Initial 1125 | . . 198 . . 14 447 1125 559 757 439 751 492 697 Average 733 | 1 232 134 . 10 253 1377 992 1073 704 948 685 937 1419 Influence Increases 10317 | 35 1048 202 . 111 1337 2012 166 1044 31 994 198 956 2183 Destroy 0b10 Robot/C 4280 | . 620 120 . 40 780 720 80 500 20 40 100 360 900 Destroy 0b10 Robot/NC 560 | 35 80 15 . 20 150 15 25 . . 25 . 55 140 Destroy Leader 716 | . 150 30 . 10 220 30 36 20 10 . 30 30 150 Allied During Kill 335 | . . . . . . 35 1 9 . 14 34 32 210 Trap Triggered on 0b10 40 | . . . . . . 40 . . . . . . . Successful Hack 211 | . 32 12 . . 35 21 5 . . 12 26 30 38 Select Force Hacks 60 | . 60 . . . . . . . . . . . . Disable Machine 480 | . 45 15 . 15 75 30 . 15 . . . 15 270 Anti-Garrison Action 2600 | . . . . . . 850 . 450 . 850 . 300 150 Destroy Structure 660 | . 31 10 . 26 62 121 4 50 1 53 8 104 190 Lose Combat Pursuer 375 | . 30 . . . 15 150 15 . . . . 30 135 Influence Decreases 8047 | 35 539 707 4 73 686 392 1614 462 846 189 928 331 1241 Entered New Map 4466 | . . 311 4 . 24 242 1184 302 686 189 682 211 631 Time Decay 2591 | 35 469 386 . 73 502 . 410 . 160 . 206 . 350 Lost Part 350 | . 70 10 . . 10 10 . 100 . . . . 150 Lost Ally 490 | . . . . . . 140 20 60 . . 40 120 110 Purge Threat 150 | . . . . . 150 . . . . . . . . Squads Dispatched 45 | . 7 1 . . 7 . 1 . . . 1 . 28 Investigation 12 | . 6 1 . . 2 . 1 . . . 1 . 1 Extermination 1 | . . . . . . . . . . . . . 1 Reinforcement 7 | . 1 . . . 5 . . . . . . . 1 Assault 25 | . . . . . . . . . . . . . 25 Garrison . | . . . . . . . . . . . . . . Intercept . | . . . . . . . . . . . . . . Searches Triggered . | . . . . . . . . . . . . . . Construction Impeded 3 | . . . . . 2 . . . . . . . 1 Haulers Reinforced . | . . . . . . . . . . . . . . Active Scanning Responses . | . . . . . . . . . . . . . . Cargo Convoy Interrupts . | . . . . . . . . . . . . . . Stealth | -11 -10 -10 -10 -9 -8 -8 -8 -8 -7 -7 -6 -6 -6 --------- Run | Yrd Mat Min Exi Min Mat Gar Mat Gar Fac Gar Fac Gar Fac Distress Signals 8 | . . . . . 5 . . . . . . . 3 Communications Jammed 26 | . . . . . . . . . . . . . 26 Distress Signals 26 | . . . . . . . . . . . . . 26 Times Spotted 329 | . 41 3 . 1 58 51 11 26 3 . 6 36 93 Peak Tracking Total 17 | . 4 3 . 2 5 5 2 5 1 . 2 6 17 Tactical Retreats 16 | . 1 . . . 1 7 1 . . . . 2 4 Traps | -11 -10 -10 -10 -9 -8 -8 -8 -8 -7 -7 -6 -6 -6 ------- Run | Yrd Mat Min Exi Min Mat Gar Mat Gar Fac Gar Fac Gar Fac Traps Triggered 34 | . 6 . . . . 10 . 16 . 1 . . 1 Indirectly . | . . . . . . . . . . . . . . Trap Hack Attempts 2 | . . . . . . . . 2 . . . . . Triggered . | . . . . . . . . . . . . . . Disarmed . | . . . . . . . . . . . . . . Reprogrammed . | . . . . . . . . . . . . . . Reused 4 | . . . . . . 4 . . . . . . . Traps Extracted . | . . . . . . . . . . . . . . Installed 4 | . . . . . . 4 . . . . . . . Triggered 4 | . . . . . . 4 . . . . . . . Most Traps Carried 4 | . . . . . . 4 . . . . . . . Machines | -11 -10 -10 -10 -9 -8 -8 -8 -8 -7 -7 -6 -6 -6 ---------- Run | Yrd Mat Min Exi Min Mat Gar Mat Gar Fac Gar Fac Gar Fac Machines Disabled 54 | . 3 1 . 1 5 11 . 6 . 5 . 3 19 Max in Single Turn 2 | . 2 1 . 1 1 1 . 1 . 1 . 1 2 Garrison Access 1 | . . . . . . . . . . . . . 1 Garrison Relay 20 | . . . . . . 8 . 5 . 5 . 2 . Machines Repaired . | . . . . . . . . . . . . . . Machines Dismantled . | . . . . . . . . . . . . . . Machines Sabotaged . | . . . . . . . . . . . . . . Overloaded Fab Kills . | . . . . . . . . . . . . . . Hacking | -11 -10 -10 -10 -9 -8 -8 -8 -8 -7 -7 -6 -6 -6 --------- Run | Yrd Mat Min Exi Min Mat Gar Mat Gar Fac Gar Fac Gar Fac Machines Accessed 47 | . 11 1 3 . 9 3 4 2 1 3 4 2 4 Terminals 31 | . 8 1 . . 6 3 2 2 . 3 1 2 3 Fabricators 1 | . . . . . . . . . . . . . 1 Repair Stations 4 | . 1 . . . 1 . 1 . . . 1 . . Recycling Units 2 | . 2 . . . . . . . . . . . . Scanalyzers 2 | . . . . . 1 . . . . . 1 . . Garrison Access 4 | . . . . . 1 . 1 . 1 . 1 . . Total Hacks 143 | . 26 3 14 . 34 7 14 8 1 5 17 3 11 Successful 75 | . 12 2 14 . 15 3 5 1 1 2 13 2 5 Failed 67 | . 14 1 . . 19 4 9 7 . 3 3 1 6 Catastrophic 8 | . 3 . . . 1 1 . 1 . . . . 2 Database Lockouts 1 | . . . . . . . . . . . 1 . . Manual 48 | . 20 2 1 . 8 2 7 2 . . . 1 5 Terminals 92 | . 18 3 . . 25 7 10 8 . 5 4 3 9 Fabricators 2 | . . . . . . . . . . . . . 2 Repair Stations 14 | . 4 . . . 3 . 3 . . . 4 . . Recycling Units 4 | . 4 . . . . . . . . . . . . Scanalyzers 11 | . . . . . 4 . . . . . 7 . . Garrison Access 6 | . . . . . 2 . 1 . 1 . 2 . . Terminal Hacks 46 | . 3 2 14 . 10 3 2 1 . 2 2 2 5 Record 13 | . . . 13 . . . . . . . . . . Part Schematic 2 | . 1 1 . . . . . . . . . . . Robot Schematic 1 | . . . . . . . . . . . 1 . . Robot Analysis 1 | . . . . . 1 . . . . . . . . Prototype ID Bank 6 | . 1 . . . 2 . 2 . . . . . 1 Open Door 2 | . . . . . . 1 . . . 1 . . . Branch Access Points 1 | . . . . . 1 . . . . . . . . Emergency Access Points 2 | . . . . . . 1 . . . 1 . . . Alert Level 1 | . . . . . . . . . . . . . 1 Unreport Threat 1 | . . . . . 1 . . . . . . . . Locate Traps 3 | . 1 . . . . . . . . . 1 . 1 Reinforcement Status 1 | . . . . . 1 . . . . . . . . Recall Reinforcements 1 | . . . . . 1 . . . . . . . . Hauler Manifests 3 | . . . . . 2 . . . . . . . 1 Registered Components 1 | . . . . . 1 . . . . . . . . Zone Layout 2 | . . 1 . . . . . . . . . . 1 Garrison Registry 1 | . . . . . . . . . . . . 1 . Patrol Navigation 2 | . . . . . . 1 . . . . . 1 . Security Stations 1 | . . . . . . . . 1 . . . . . Proto ID Catalog 1 | . . . 1 . . . . . . . . . . Fabricator Hacks . | . . . . . . . . . . . . . . Repair Station Hacks 8 | . 2 . . . 2 . . . . . 4 . . Scan Component 4 | . 1 . . . 1 . . . . . 2 . . Repair 4 | . 1 . . . 1 . . . . . 2 . . Recycling Unit Hacks . | . . . . . . . . . . . . . . Scanalyzer 5 | . . . . . . . . . . . 5 . . Insert Component 2 | . . . . . . . . . . . 2 . . Analyze 2 | . . . . . . . . . . . 2 . . Retrieve Study 1 | . . . . . . . . . . . 1 . . Garrison Access Hacks 5 | . . . . . 1 . 1 . 1 . 2 . . Unlock Access 4 | . . . . . 1 . 1 . 1 . 1 . . Coupler Status 1 | . . . . . . . . . . . 1 . . Unauthorized Hacks 11 | . 7 . . . 2 . 2 . . . . . . Terminals 6 | . 4 . . . 1 . 1 . . . . . . Botnet 3 | . 2 . . . . . 1 . . . . . . Skim 3 | . 2 . . . 1 . . . . . . . . Fabricators . | . . . . . . . . . . . . . . Repair Stations 3 | . 1 . . . 1 . 1 . . . . . . Patch 3 | . 1 . . . 1 . 1 . . . . . . Recycling Units 2 | . 2 . . . . . . . . . . . . Tunnel 2 | . 2 . . . . . . . . . . . . Scanalyzers . | . . . . . . . . . . . . . . Garrison Access . | . . . . . . . . . . . . . . Data Cores Recovered . | . . . . . . . . . . . . . . Used . | . . . . . . . . . . . . . . Hacking Detections 38 | . 10 1 . . 9 2 3 2 . 2 3 2 4 Full Trace Events 9 | . 1 1 . . 2 1 . 2 . . 1 . 1 Feedback Events . | . . . . . . . . . . . . . . Feedback Blocked . | . . . . . . . . . . . . . . Robot Schematics Acquired 1 | . . . . . . . . . . . 1 . . Robots Built . | . . . . . . . . . . . . . . Authchips . | . . . . . . . . . . . . . . Time . | . . . . . . . . . . . . . . Total Robot Build Rating . | . . . . . . . . . . . . . . Part Schematics Acquired 3 | . 1 1 . . . . . . . . 1 . . Parts Built . | . . . . . . . . . . . . . . Authchips . | . . . . . . . . . . . . . . Time . | . . . . . . . . . . . . . . Total Part Build Rating . | . . . . . . . . . . . . . . Part Studies Acquired 1 | . . . . . . . . . . . 1 . . Parts Repaired 4 | . 1 . . . 1 . . . . . 2 . . Time 140 | . 26 . . . 38 . . . . . 76 . . Parts Recycled . | . . . . . . . . . . . . . . Recycled Matter . | . . . . . . . . . . . . . . Retrieved Matter . | . . . . . . . . . . . . . . Retrieved Components . | . . . . . . . . . . . . . . Parts Scanalyzed 2 | . . . . . . . . . . . 2 . . Part Schematics Acquired 1 | . . . . . . . . . . . 1 . . Parts Damaged . | . . . . . . . . . . . . . . Bothacking | -11 -10 -10 -10 -9 -8 -8 -8 -8 -7 -7 -6 -6 -6 ------------ Run | Yrd Mat Min Exi Min Mat Gar Mat Gar Fac Gar Fac Gar Fac Used RIF Installer 5 | . . . . . . 1 . 2 . 1 . 1 . Hotswap 1 | . . . . . . . . 1 . . . . . Signal Jammer 1 | . . . . . . . . . . 1 . . . Program Shield 1 | . . . . . . . . 1 . . . . . Autooverride 1 | . . . . . . . . . . . . 1 . Robots Hacked 45 | . . . 4 . . 8 . 6 1 . 1 13 12 Non-combat 6 | . . . 3 . . . . . 1 . 1 . 1 Combat 39 | . . . 1 . . 8 . 6 . . . 13 11 Robot Hacks Applied 49 | . . . 4 . . 8 . 6 1 . 2 13 15 parse_system 6 | . . . 4 . . . . . . . . . 2 deconstruct_bot 1 | . . . . . . . . . . . 1 . . find_garrison 1 | . . . . . . . . . . . . . 1 disrupt_area 2 | . . . . . . . . . . . . . 2 amplify_resonance 9 | . . . . . . . . . . . . 5 4 disable_weapons 3 | . . . . . . 1 . 1 . . . 1 . overwrite_iff 12 | . . . . . . 5 . 1 . . . 3 3 formatsys_low 3 | . . . . . . . . . 1 . 1 . 1 formatsys_high 12 | . . . . . . 2 . 4 . . . 4 2 Relay Couplers Released 87 | . . . . . . 37 . 21 . 19 . 7 3 Machine Destruction 87 | . . . . . . 37 . 21 . 19 . 7 3 Attached 17 | . . . . . . 2 . 3 1 . 1 6 4 Fabnet Peak Effective % . | . . . . . . . . . . . . . . Robots Rewired 8 | . . . . . . 5 . . . 1 . 2 . Allies Hacked . | . . . . . . . . . . . . . . Hacks Repelled . | . . . . . . . . . . . . . . Allies | -11 -10 -10 -10 -9 -8 -8 -8 -8 -7 -7 -6 -6 -6 -------- Run | Yrd Mat Min Exi Min Mat Gar Mat Gar Fac Gar Fac Gar Fac Total Allies 38 | . . . . . . 12 . 5 1 4 1 9 6 Largest Group 5 | . . . . . . 4 1 2 1 5 5 4 5 Highest-Rated Group 451 | . . . . . . 87 12 45 22 220 220 433 451 Highest-Rated Ally 116 | . . . . . . 39 12 29 22 95 95 116 116 Total Orders 11 | . . . . . . . . . 2 2 . 4 3 STAY 7 | . . . . . . . . . . 1 . 4 2 FOLLOW 2 | . . . . . . . . . 1 1 . . . AID 2 | . . . . . . . . . 1 . . . 1 Ally Attacks 230 | . . . . . . 63 9 17 . . 31 34 76 Total Damage 7693 | . . . . . . 936 91 311 . . 1033 990 4332 Kills 65 | . . . . . . 10 . 3 . . 5 5 42 Allies Corrupted 2 | . . . . . . 1 . . . . . . 1 Allies Melted . | . . . . . . . . . . . . . . Intel | -11 -10 -10 -10 -9 -8 -8 -8 -8 -7 -7 -6 -6 -6 ------- Run | Yrd Mat Min Exi Min Mat Gar Mat Gar Fac Gar Fac Gar Fac Active Infowar (turns) 1048 | 80 615 . . . 1 . . . . . 352 . . Structural 1 | . . . . . 1 . . . . . . . . Seismic 1047 | 80 615 . . . . . . . . . 352 . . Robot Analysis Total 1 | . . . . . 1 . . . . . . . . Derelict Logs Recovered 2 | . . . . 2 . . . . . . . . . Drone Launches . | . . . . . . . . . . . . . . Drone Recoveries . | . . . . . . . . . . . . . . Exploration | -11 -10 -10 -10 -9 -8 -8 -8 -8 -7 -7 -6 -6 -6 ------------- Run | Yrd Mat Min Exi Min Mat Gar Mat Gar Fac Gar Fac Gar Fac Turns Passed 18774 | 232 2138 912 851 858 3255 2396 987 1661 329 1449 434 1894 1378 Spaces Moved 8476 | 110 981 536 425 509 1118 1117 412 733 147 900 200 610 678 Core 4 | 3 . . . . . . . . . . . . 1 Treads 4486 | 107 981 536 425 77 722 227 158 133 . . . 443 677 Legs . | . . . . . . . . . . . . . . Wheels 3986 | . . . . 432 396 890 254 600 147 900 200 167 . Hover . | . . . . . . . . . . . . . . Flight . | . . . . . . . . . . . . . . Fastest Speed 50 | 50 160 160 160 110 135 120 150 135 135 135 150 145 50 Average Speed 170 | 157 160 160 197 152 219 164 188 158 173 144 150 179 160 Slowest Speed 290 | 160 160 160 240 240 250 250 250 250 195 150 150 290 165 Overloaded Moves . | . . . . . . . . . . . . . . Propulsion Burnouts . | . . . . . . . . . . . . . . Robots Hopped . | . . . . . . . . . . . . . . Potential Cave-ins . | . . . . . . . . . . . . . . Cave-ins Triggered 1 | . . 1 . . . . . . . . . . . Exploration Rate (%) 61 | 5 98 99 90 89 89 94 33 87 4 96 7 56 19 Regions Visited 13 Branch Regions 3 Pre-discovered Areas 4 | . 2 . 1 1 . . . . . . . . . Known Exits Taken 4 | . . . . . 1 . 1 . 1 . 1 . . Unknown Exits Taken 5 | 1 1 1 1 1 . . . . . . . . . Scrap Searched 4 | . . 1 . 3 . . . . . . . . . Spaces Dug 81 | . . 15 . . 8 5 . 2 1 8 2 36 4 Terrain Destroyed 291 | . 29 15 . 30 79 36 3 10 1 8 2 39 39 Melee 51 | . . . . . . 5 . 2 1 8 2 32 1 Projectile 101 | . . . . . 28 31 3 8 . . . 7 24 AOE 139 | . 29 15 . 30 51 . . . . . . . 14 Terrain Rammed . | . . . . . . . . . . . . . . Walls Destroyed . | . . . . . . . . . . . . . . Machines Disabled . | . . . . . . . . . . . . . . Actions | -11 -10 -10 -10 -9 -8 -8 -8 -8 -7 -7 -6 -6 -6 --------- Run | Yrd Mat Min Exi Min Mat Gar Mat Gar Fac Gar Fac Gar Fac Total 11349 | 135 1299 571 439 575 1629 1463 586 1072 208 996 329 1176 871 Wait 1278 | . 138 10 . 37 257 95 135 58 34 17 117 324 56 Move 8466 | 109 980 535 424 508 1118 1116 412 732 147 899 199 609 678 Hop . | . . . . . . . . . . . . . . Pick Up 147 | 3 24 4 3 5 27 25 3 15 2 8 1 18 9 Fast Attach 66 | 7 7 2 . 2 17 2 5 9 . 4 3 7 1 Attach 57 | . 4 1 . 2 6 5 . 9 3 . 2 8 17 Detach 11 | . . . 1 1 . . . . 1 . 1 4 3 Swap 135 | 1 7 3 3 7 26 30 7 15 9 2 1 15 9 Drop 174 | . 13 5 4 3 43 18 9 15 2 13 . 33 16 Fire 584 | 15 125 11 . 3 128 88 15 67 2 1 3 54 72 Melee 261 | . . . 4 7 7 43 . 29 8 52 2 103 6 Ram . | . . . . . . . . . . . . . . Kick . | . . . . . . . . . . . . . . Crush 6 | . 1 . . . . . . 1 . . . . 4 Escape Stasis 156 | . . . . . . 36 . 120 . . . . . Rewire 2 | . . . . . . 1 . . . . . 1 . Trap 6 | . . . . . . 4 . 2 . . . . . Miscellaneous . | . . . . . . . . . . . . . . Route ------- -11/Scrapyard -10/Materials (discovered 5 exits: [*Mat x3] / *Min / [*Sub]) -10/Mines (discovered 4 exits: [*Mat x2] / *Exi / [*Sub]) -10/Exiles (discovered 2 exits: [*Min x2]) -9/Mines -8/Materials (discovered 4 exits: *Fac x3 / Gar) -8/Garrison (discovered 4 exits: *Mat x4) -8/Materials (discovered 2 exits: *Fac / Gar) -8/Garrison (discovered 3 exits: *Fac x3) -7/Factory -7/Garrison (discovered 3 exits: *Fac x3) -6/Factory -6/Garrison (discovered 3 exits: *Fac x3) -6/Factory (discovered 1 exit: [*Fac]) History --------- Turn | Location | Event 4 | -11/Scrapyard | Discovered new exit (range 15) 233 | -11/Scrapyard | Entered Materials 310 | -10/Materials | Build established: Mutant 601 | -10/Materials | Discovered new exit (range 13) 1052 | -10/Materials | Discovered new exit (range 10) 1233 | -10/Materials | Derelicts attacked the area 1268 | -10/Materials | Repaired Lgt. Treads 1404 | -10/Materials | Discovered new exit (range 15) 1478 | -10/Materials | Lost 3 parts (1p1n1w) 1628 | -10/Materials | Core integrity fell below 50% 2097 | -10/Materials | Discovered new exit (range 8) 2105 | -10/Materials | Discovered new exit (range 8) 2371 | -10/Materials | Entered Mines 2372 | -10/Mines | Assembled infested the area 2377 | -10/Mines | Assisted by a Guerilla fighting off Assembled 2462 | -10/Mines | Crushed by falling debris 2462 | -10/Mines | System corruption reached 10% 2479 | -10/Mines | Discovered new exit (range 5) 2603 | -10/Mines | Discovered new exit (range 7) 2706 | -10/Mines | A weapon hastily lodged in a ceiling crevice suddenly fell to the ground 2800 | -10/Mines | Discovered new exit (range 15) 2838 | -10/Mines | Deemed a non-threat by the Exiles lab entrance 2838 | -10/Mines | Discovered new exit (range 5) 3283 | -10/Mines | Entered Exiles 3313 | -10/Exiles | Discovered new exit (range 14) 3342 | -10/Exiles | Met 8R-AWN 3371 | -10/Exiles | Met EX-HEX 3419 | -10/Exiles | Met EX-BIN 3450 | -10/Exiles | Aligned with FarCom system 3452 | -10/Exiles | Given EX-Vault access code 3489 | -10/Exiles | Opened EX-Vault 3502 | -10/Exiles | Found Latent Energy Streamer 3535 | -10/Exiles | Warned to stay clear of 0b10 Research branches 3585 | -10/Exiles | Learned location of Zion (-7) 3586 | -10/Exiles | Met EX-DEC 3741 | -10/Exiles | Visited The Gauntlet 4113 | -10/Exiles | Discovered new exit (range 10) 4134 | -10/Exiles | Left Exiles lab with Latent Energy Streamer 4134 | -10/Exiles | Entered Mines 4141 | -9/Mines | Met a Derelict bent on vengeance 4430 | -9/Mines | Received a Rocket Launcher from a helpful Derelict 4474 | -9/Mines | Learned location of 1 exit from Materials 4866 | -9/Mines | Learned location of Storage (-7) 4938 | -9/Mines | Discovered new exit (range 6) 4992 | -9/Mines | Entered Materials 4992 | -8/Materials | Evolved 4 slots: Propulsion x1, Utility x2, Weapon x1 4993 | -8/Materials | Identified exit to Factory 5466 | -8/Materials | Discovered exit to Factory (range 16) 5694 | -8/Materials | Build established: Tank 6247 | -8/Materials | Build established: Scavenger-Tank 6741 | -8/Materials | Build established: Tank 7518 | -8/Materials | Discovered exit to Factory (range 8) 7716 | -8/Materials | Repaired Arm. Treads 8247 | -8/Materials | Identified exit to Garrison 8247 | -8/Materials | Entered Garrison 8469 | -8/Garrison | Triggered checkpoint 8520 | -8/Garrison | Garrison Relay disabled 8523 | -8/Garrison | Garrison Relay disabled 8531 | -8/Garrison | Garrison Relay disabled 8533 | -8/Garrison | Garrison Relay disabled 8613 | -8/Garrison | Triggered checkpoint 8621 | -8/Garrison | Triggered checkpoint 8714 | -8/Garrison | Triggered checkpoint 8893 | -8/Garrison | Installed Relay Interface Framework 9032 | -8/Garrison | Discovered new exit (range 10) 9205 | -8/Garrison | Triggered checkpoint 9282 | -8/Garrison | Garrison Relay disabled 9511 | -8/Garrison | Triggered checkpoint 9577 | -8/Garrison | Garrison Relay disabled 9603 | -8/Garrison | Triggered checkpoint 9647 | -8/Garrison | Discovered new exit (range 7) 9671 | -8/Garrison | Lost 4 allies 9833 | -8/Garrison | Triggered checkpoint 9872 | -8/Garrison | Discovered new exit (range 3) 10125 | -8/Garrison | Build established: Bothacker-Mutant 10177 | -8/Garrison | Triggered checkpoint 10255 | -8/Garrison | Triggered checkpoint 10269 | -8/Garrison | Garrison Relay disabled 10356 | -8/Garrison | Discovered new exit (range 11) 10467 | -8/Garrison | Triggered checkpoint 10510 | -8/Garrison | Garrison Relay disabled 10643 | -8/Garrison | Entered Materials 10643 | -8/Materials | Accompanied by 1 ally 10760 | -8/Materials | Build established: Bothacker-Tank 11184 | -8/Materials | Discovered exit to Factory (range 10) 11198 | -8/Materials | Core integrity fell below 50% 11630 | -8/Materials | Identified exit to Garrison 11630 | -8/Materials | Entered Garrison 11702 | -8/Garrison | Triggered checkpoint 11730 | -8/Garrison | Garrison Relay disabled 11819 | -8/Garrison | Triggered checkpoint 11929 | -8/Garrison | Triggered checkpoint 11999 | -8/Garrison | Triggered checkpoint 12166 | -8/Garrison | Triggered checkpoint 12205 | -8/Garrison | Garrison Relay disabled 12251 | -8/Garrison | Build established: Bothacker-Mutant 12278 | -8/Garrison | Expanded RIF knowledge: Hotswap 12344 | -8/Garrison | Garrison Relay disabled 12425 | -8/Garrison | Discovered exit to Factory (range 14) 12572 | -8/Garrison | Learned Factory security intel 12588 | -8/Garrison | Triggered checkpoint 12599 | -8/Garrison | Garrison Relay disabled 12702 | -8/Garrison | Discovered exit to Factory (range 12) 12835 | -8/Garrison | Discovered exit to Factory (range 13) 12852 | -8/Garrison | Expanded RIF knowledge: Program Shield 13022 | -8/Garrison | Triggered checkpoint 13026 | -8/Garrison | Garrison Relay disabled 13115 | -8/Garrison | Core integrity fell below 20% 13134 | -8/Garrison | System corruption reached 10% 13179 | -8/Garrison | Lost 3 parts (1p2w) 13291 | -8/Garrison | Entered Factory 13291 | -7/Factory | Evolved 2 slots: Propulsion x1, Utility x1 13620 | -7/Factory | Identified exit to Garrison 13620 | -7/Factory | Entered Garrison 13620 | -7/Garrison | Discovered recently destroyed garrison 13620 | -7/Garrison | Accompanied by 1 ally 13644 | -7/Garrison | Garrison Relay disabled 13761 | -7/Garrison | Garrison Relay disabled 13905 | -7/Garrison | Discovered new exit (range 12) 13976 | -7/Garrison | Garrison Relay disabled 14030 | -7/Garrison | Expanded RIF knowledge: Signal Jamming 14195 | -7/Garrison | Rescued a captive Derelict 14227 | -7/Garrison | Found embedded Infiltrators 14237 | -7/Garrison | Garrison Relay disabled 14342 | -7/Garrison | Build established: Botlord-Mutant 14410 | -7/Garrison | Garrison Relay disabled 14501 | -7/Garrison | Discovered new exit (range 8) 14637 | -7/Garrison | Discovered new exit (range 13) 15069 | -7/Garrison | Entered Factory 15069 | -6/Factory | Accompanied by 5 allies 15069 | -6/Factory | Evolved 2 slots: Power x1, Utility x1 15129 | -6/Factory | Repaired Arm. Treads 15169 | -6/Factory | Repaired Arm. Treads 15255 | -6/Factory | Central database locked down 15488 | -6/Factory | Identified exit to Garrison 15503 | -6/Factory | Entered Garrison 15503 | -6/Garrison | Accompanied by 2 allies 15517 | -6/Garrison | Triggered checkpoint 15524 | -6/Garrison | Discovered new exit (range 56) 15524 | -6/Garrison | Discovered new exit (range 69) 15524 | -6/Garrison | Discovered new exit (range 40) 15582 | -6/Garrison | Garrison Relay disabled 15679 | -6/Garrison | Expanded RIF knowledge: Autooverride 15725 | -6/Garrison | Triggered checkpoint 15735 | -6/Garrison | Triggered checkpoint 15767 | -6/Garrison | Triggered checkpoint 15816 | -6/Garrison | Lost 5 allies 15998 | -6/Garrison | Build established: Botlord-Gunner 16507 | -6/Garrison | Build established: Botlord-Mutant 16615 | -6/Garrison | Spotted B-86 Titan 16619 | -6/Garrison | Spotted B-86 Titan 16720 | -6/Garrison | Triggered checkpoint 16779 | -6/Garrison | Garrison Relay disabled 16839 | -6/Garrison | Assimilated Titan 5a with formatsys_high 16846 | -6/Garrison | Assimilated Titan 5b with formatsys_high 16860 | -6/Garrison | Rewired B-75 Beast 16861 | -6/Garrison | Rewired B-86 Titan 16868 | -6/Garrison | Found Hvy. Reflective Plating 17156 | -6/Garrison | Build established: Bothacker-Mutant 17397 | -6/Garrison | Entered Factory 17397 | -6/Factory | Accompanied by 4 allies 18051 | -6/Factory | Build established: Bothacker-Tank 18097 | -6/Factory | First assault squad dispatched 18194 | -6/Factory | High security lockdown imminent 18258 | -6/Factory | Discovered new exit (range 16) 18274 | -6/Factory | High security lockdown engaged 18333 | -6/Factory | Lost 3 allies 18491 | -6/Factory | Lost 3 parts (1p1u1w) 18637 | -6/Factory | Core integrity fell below 50% 18649 | -6/Factory | Destroyed 7 combat bots 18672 | -6/Factory | Lost 5 parts (2n1u2w) 18713 | -6/Factory | Core integrity fell below 20% 18715 | -6/Factory | System corruption reached 10% 18735 | -6/Factory | Destroyed 7 combat bots 18740 | -6/Factory | Lost 4 parts (1p2n1u) 18775 | -6/Factory | Destroyed by P-60 Hacker with Shock Rifle Last Messages --------------- 18771_ Penetrated by Slug. 18771_ Imp. Heavy Treads destroyed. 18772_ Penetrated by Slug. 18772_ Remote Datajack blown off. 18772_ E-15 Imp destroyed. 18773_ C-45 Heavy ARC bursts open, deploying its payload. 18773_ P-60 Hacker unfolds itself. 18773_ E-15 Imp unfolds itself. 18773_ Penetrated by Slug. 18773_ Slug penetrates Wall. 18773_ Penetrated by Slug. 18774_ Imp. Heavy Treads destroyed. 18774_ Slug penetrates E-15 Imp. 18774_ E-15 Imp destroyed. 18774_ Dropped Great Axe. 18775_ Dropped Energy Well. 18775_ C-45 Heavy ARC bursts open, deploying its payload. 18775_ H-66 Slayer unfolds itself. 18775_ M-28 Smith unfolds itself. 18775_ Relay Coupler [NC] destroyed. Map ----- +----------------------------------------------------+ | ?????????????????????????????????????????????????? | | ?????????????????????????????????????????????????? | | ?????????????????????????????????????????????????? | | ?????????????????????????????????????????????????? | | ?????????????????????????????????????????????????? | | ?????????????????????????????????????????????????? | | ????????????????????????????????????????????? ???? | | ????????????????????????????????????????????" ??? | | ???????????????????????????????????????????? ?? | | ????????????????????????????? ?????????????? ### | | ????????????????????????????? ?????????????? # | | ????????????????????????????? #???????###### # | | ????????????????????????????? #????#### # | | ?????????????????????????????m#????# # | | ????????????????????????????#h#????# # | | ???????????????????????????##h##???# # | | ?????????????????????????###%h;##### # | | ?????????????????????????# hpphp # | | ?????????????????????????# p # | | ?????????????????????????# """ | | ??????? ?????????????????# =/ """ | | ??????? ???????????#?????#!%* """ | | ?????#?+????# ###### ##### = | | ?? # #???# """ | | " """ # #???# %"" | | " """ # ##### @// %"" ### | | " """ # !=% #?? | | ?? # ?##############| """ #?# | | ??? # ??############## """ ##T | | ???? +% ??? # """ | | ?????##%"##?? """"" / # | | ######" # #?? """"" # """ / !%= | | ###?# """ !! ! " """ #####"%=!="## | | ^ ="#??# ! ! # """ ## !"=%[## | | "" "%% ##??#! !! #g ## +%%[ # | | "" "%% #???########### ###!phh""" ## !##"#%# | | "" "% ###################!g! """ ## ####[" | | ^% % %!![hb"" ## #??# # | | % % % C %b % %[ ## [ #??# # | | % ^ %bg g ## |! "#?#"# | | """############"######/######### ## ""##%# | | %%!" #????# =!!"G"" # ??????# ## "" | | ="###?????# !!%= "" # """ "????# + # % | | "????????# !%! # """ """??# ### !#" %! | | #????????# = # """ """ ?# ??# ?" | | +####?????# # "" "" ?# ??######?" = | | #?????# [ # "" ""??# ?######### | | """"#?????# =% [ # ?? ??? ?# " | | """"#?????# =% # ! ??? ??? ?? """" + | | """#?????# = *% ####???????? ?? """" # | +----------------------------------------------------+ Best States ------------- Heat Dissipation 56 Energy Generation 27 Energy Capacity 480 Matter Stores 300 Matter Capacity 300 Sight Range 16 Terrain Scan Density 85 Armor Coverage 1200 Resistance: TH 25 Evasion (%) 40 Targeting Accuracy 13 Core Analysis 6 Armor Integrity Analysis 30 Recoil Reduction 4 Offensive Hacking 10 Relay Coupler Types 3 Relay Coupler Value 76 Authchip Count 1 Item Schematics ----------------- Hcp. Storage Unit | -10/Materials | Hacked Lrg. Storage Unit | -10/Mines | Hacked Adv. ECM Suite | -6/Factory | Scanalyzed Robot Schematics ------------------ L-41 Fighter | -6/Factory | Hacked Fabricated ------------ Nothing Repaired ---------- Lgt. Treads | 11% | -10/Materials Arm. Treads | 52% | -8/Materials Arm. Treads | 45% | -6/Factory Arm. Treads | 48% | -6/Factory Studied --------- Arm. Treads | -6/Factory | Hacked Alien Tech Used ----------------- None Achievements -------------- None Challenges ------------ None Game ------ Seed RingPhaseCannon Manual? 0 Play Time 02:14:58 Cumulative 91.5 hours Start 2026.04.19 @ 11:01:25 End 2026.04.19 @ 15:14:34 Sessions 5 Manual Loads 0 Difficulty Rogue Special Mode None Game No. 41 Rogue 41 Adventurer 0 Explorer 0 Win Type - Total 1 Types 1/0/0/0/0/0/0/0/0/0 Lore% 58 Gallery% 59 Achievement% 53 Wizard Run 0 Options --------- Layout 0 ASCII 0 Keyboard 0 Movement Mouse Keybinds 0 Fullscreen 1 Font 24/Smallcaps Map View 183x50 Zoom Use 0% Tactical HUD 1 Map Filters NONE Filters NONE Steam 1 RUN: 665f3819-85f6-4b5a-9458-e20a32f4100a